bitfinex/quotes_ETHUSD_20220119
["timestamp","ask_amount","ask_price","bid_price","bid_amount"]
[1642586239088,7.1,3092.2,3090.7,2.93099804]
[1642586239089,0.01234244,3091.6,3089.8,0.468]
[1642586239289,7.1,3091.4,3089.7,0.27639993]
[1642586239490,7.1,3091.4,3089.5,1.1359948]
[1642586239491,3.69899804,3091.3,3089.5,1.1359948]
[1642586239688,0.04527729,3091.2,3089.9,0.00795792]
[1642586239889,0.3,3090.5,3089.9,0.00795792]
[1642586240140,1.42945736,3090.4,3089.7,0.00909477]
[1642586240333,1.40911433,3089.9,3089.4,0.01080004]
[1642586240533,1.40911433,3089.9,3089.5,0.01023162]
[1642586240736,1.40911433,3089.9,3089.3,0.1293]
[1642586240737,3.89338605,3089.9,3089.4,0.01080004]
[1642586241230,1.70911433,3089.9,3089.4,0.01080004]
[1642586242237,3.34635254,3089.8,3089.4,0.01080004]
[1642586242641,3.12251857,3089.8,3089.4,0.01080004]
[1642586242835,1.70911433,3089.9,3089.2,0.01193689]
[1642586243236,1.34074167,3089.3,3089.2,0.01193689]
[1642586243920,4.94074167,3089.3,3089.2,0.01193689]
[1642586244106,5.54074167,3089.3,3089.2,0.01193689]
[1642586244505,7.86257935,3089.3,3089.2,0.01193689]
[1642586244709,9.04074167,3089.3,3089.2,0.01193689]
[1642586245506,5.54074167,3089.3,3089.2,0.01193689]
[1642586245709,1.34074167,3089.3,3089.2,0.01193689]
[1642586245910,0.1294,3090.0,3089.2,0.01193689]
[1642586246109,0.1293,3090.5,3089.2,0.01193689]
[1642586246309,0.1293,3090.6,3089.2,0.01193689]
[1642586246508,3.05034796,3090.6,3089.2,0.01193689]
[1642586246709,0.1293,3090.6,3089.2,0.01193689]
[1642586246908,1.77242072,3090.3,3089.2,0.01193689]
[1642586247109,1.23338536,3089.6,3089.2,0.01193689]
[1642586247513,0.1293,3089.5,3089.2,0.01193689]
[1642586248147,3.3199228,3089.5,3089.2,0.01193689]
[1642586248952,0.1293,3089.5,3089.2,0.01193689]
[1642586251687,0.1293,3089.5,3088.5,0.01591585]
[1642586251888,1.49730877,3088.9,3088.7,0.8094447]
[1642586252187,1.49730877,3088.9,3088.8,2.79351058]
[1642586252389,1.49730877,3088.9,3088.8,0.14351058]
[1642586252586,2.24773704,3089.6,3088.9,1.26580485]
[1642586252788,1.27846092,3089.5,3088.9,1.26580485]
[1642586252987,1.27846092,3089.5,3089.0,0.01307374]
[1642586253889,1.27846092,3089.5,3089.0,3.94535851]
[1642586254087,1.87846092,3089.5,3089.1,0.1293]
[1642586254286,1.87846092,3089.5,3089.1,0.01250531]
[1642586254488,1.87846092,3089.5,3089.2,0.01193689]
[1642586254690,1.87846092,3089.5,3089.0,0.01307374]
[1642586254887,1.57846092,3089.5,3089.0,0.01307374]
[1642586255333,1.87846092,3089.5,3089.0,0.01307374]
[1642586256334,1.27846092,3089.5,3089.0,0.01307374]
[1642586257538,1.57846092,3089.5,3089.1,0.8094239]
[1642586257737,1.27846092,3089.5,3089.1,0.8094239]
[1642586257938,1.27846092,3089.5,3089.2,0.01193689]
[1642586258542,1.57846092,3089.5,3089.2,0.01193689]
[1642586258741,1.27846092,3089.5,3089.2,0.01193689]
[1642586258986,1.57846092,3089.5,3089.2,0.01193689]
[1642586260190,1.57846092,3089.5,3089.1,0.82191361]
[1642586260390,1.57846092,3089.5,3089.1,0.8094083]
[1642586260590,1.57846092,3089.5,3089.2,0.01193689]
[1642586261490,1.57846092,3089.5,3089.2,0.82128689]
[1642586261890,1.57846092,3089.5,3089.3,0.01136847]
[1642586264779,1.57846092,3089.5,3089.2,0.01193689]
[1642586265781,1.87846092,3089.5,3089.2,0.01193689]
[1642586270139,1.57846092,3089.5,3089.2,0.01193689]
[1642586271754,1.57846092,3089.5,3089.2,1.63067149]
[1642586271755,0.3,3089.5,3089.2,1.63067149]
[1642586272048,0.1293,3090.1,3089.3,0.01136847]
[1642586272650,1.16583736,3089.5,3089.4,0.8094502]
[1642586272948,1.16583736,3089.5,3089.4,0.82025024]
[1642586273749,3.16952011,3089.5,3089.4,0.82025024]
[1642586273986,1.16583736,3089.5,3089.4,0.82025024]
[1642586276491,2.84435468,3089.5,3089.4,0.82025024]
[1642586277493,1.16583736,3089.5,3089.4,0.82025024]
[1642586278357,5.16583736,3089.5,3089.4,0.82025024]
[1642586278563,5.59513736,3089.5,3089.4,0.01080004]
[1642586278964,8.65919107,3089.5,3089.2,0.01193689]
[1642586279264,8.65919107,3089.5,3089.1,0.01250531]
[1642586279469,1.88012475,3089.3,3089.1,0.01250531]
[1642586279764,1.88012475,3089.3,3089.0,0.01307374]
[1642586279765,2.48012475,3089.3,3089.0,0.01307374]
[1642586279964,2.48012475,3089.3,3089.1,2.75330769]
[1642586280165,2.48012475,3089.3,3089.1,5.18195369]
[1642586280364,2.48012475,3089.3,3089.2,0.01193689]
[1642586280570,1.16583736,3089.5,3089.2,0.01193689]
[1642586280767,1.16583736,3089.5,3089.3,2.75327667]
[1642586281167,1.16583736,3089.5,3089.4,0.01080004]
[1642586281792,1.16583736,3089.5,3089.4,2.76386467]
[1642586282192,3.03947619,3089.5,3089.4,2.76389431]
[1642586282393,1.16583736,3089.5,3089.4,2.76389431]
[1642586284895,0.1293,3090.2,3089.7,0.80923]
[1642586285140,0.1293,3090.2,3089.4,0.01080004]
[1642586285342,1.74357776,3090.2,3089.8,0.00852635]
[1642586285542,1.74357776,3090.2,3089.3,0.01136847]
[1642586285740,1.74357776,3090.2,3089.6,0.0096632]
[1642586285943,1.61427776,3090.0,3089.1,0.01250531]
[1642586286144,1.61427776,3089.8,3089.5,0.01023162]
[1642586286343,1.74357776,3089.7,3089.1,0.01250531]
[1642586286547,0.4293,3089.7,3089.3,0.01136847]
[1642586286747,0.4293,3089.7,3089.4,2.75333255]
[1642586286948,1.16664939,3089.6,3089.3,0.82085117]
[1642586287254,1.16664939,3089.6,3089.3,0.8094827]
[1642586287255,0.1293,3089.5,3089.3,0.8094827]
[1642586287847,0.1293,3089.5,3089.4,2.75322586]
[1642586288250,2.5793,3089.5,3089.4,2.75322586]
[1642586288447,2.5793,3089.5,3089.3,0.8094827]
[1642586288747,2.5793,3089.5,3089.1,1.6189675]
[1642586289032,3.38891,3089.5,3089.2,0.01193689]
[1642586289223,3.38891,3089.5,3089.3,2.75332295]
[1642586289422,6.02769752,3089.4,3089.3,2.75332295]
[1642586289622,6.02769752,3089.4,3088.9,1.26580485]
[1642586289827,6.02769752,3089.4,3089.0,2.75335941]
[1642586290022,6.02769752,3089.4,3089.0,2.76643315]
[1642586290222,6.02769752,3089.4,3089.1,2.75335941]
[1642586290423,2.52769752,3089.4,3089.1,2.75335941]
[1642586290628,0.80962,3089.3,3089.2,0.01193689]
[1642586291029,1.10962,3089.3,3089.2,0.01193689]
[1642586291629,19.03,3089.1,3088.0,2.91847354]
[1642586291932,0.1293,3089.2,3088.1,2.67746152]
[1642586291933,0.80994,3088.8,3088.1,2.67746152]
[1642586292128,0.80994,3088.8,3087.7,3.8304]
[1642586292129,0.26719594,3088.7,3088.2,2.67746152]
[1642586292333,0.26719594,3088.7,3088.2,2.68314575]
[1642586292530,0.94763594,3088.6,3088.3,2.67746152]
[1642586292738,0.1295,3088.5,3088.3,2.67746152]
[1642586292941,6.66686248,3088.4,3088.1,5.169]
[1642586293144,0.26719594,3088.3,3088.2,2.65866669]
[1642586293344,3.58769594,3088.3,3088.2,2.66435092]
[1642586293544,3.58769594,3088.3,3088.2,0.00568423]
[1642586293545,5.59315027,3088.3,3088.2,0.00568423]
[1642586294044,5.45545433,3088.3,3088.2,0.00568423]
[1642586294246,9.10545433,3088.3,3088.2,0.00568423]
[1642586295248,8.10545433,3088.3,3088.2,0.00568423]
[1642586295449,2.00545433,3088.3,3088.2,0.00568423]
[1642586295648,2.47669248,3088.4,3087.7,0.80984]
[1642586295856,2.47669248,3088.4,3087.2,1.01136847]
[1642586295857,2.47669248,3088.4,3087.8,2.67214595]
[1642586296048,2.47669248,3088.4,3087.9,2.67214595]
[1642586296248,2.47669248,3088.4,3087.9,2.67953545]
[1642586296515,2.47669248,3088.4,3088.0,2.67896703]
[1642586296717,2.47669248,3088.4,3088.0,0.81664788]
[1642586297016,2.47669248,3088.4,3088.1,0.00625266]
[1642586297717,4.53277775,3088.4,3088.1,0.00625266]
[1642586297916,2.47669248,3088.4,3088.1,0.00625266]
[1642586298117,2.47669248,3088.4,3087.9,0.8172495]
[1642586298319,2.47669248,3088.4,3088.0,0.00682108]
[1642586299418,2.94747072,3088.3,3088.0,0.00682108]
[1642586299618,4.56744072,3088.3,3088.0,0.00682108]
[1642586299818,0.3,3088.1,3087.6,0.00909477]
[1642586300023,3.71957988,3088.0,3087.7,2.51903942]
[1642586300442,7.28723888,3087.9,3087.8,0.00795793]
[1642586300640,8.48360836,3087.9,3087.8,0.00795793]
[1642586300842,5.44763457,3087.9,3087.8,0.00795793]
[1642586301043,5.44763457,3087.9,3087.5,1.6197964]
[1642586301044,5.44763457,3087.9,3087.6,0.00909477]
[1642586301346,6.25763457,3087.9,3087.6,0.00909477]
[1642586301545,2.20763457,3087.9,3087.6,0.00909477]
[1642586301744,1.90763457,3087.9,3087.5,0.8100213]
[1642586301945,1.09763457,3087.9,3087.6,0.00909477]
[1642586302148,1.09763457,3087.9,3087.7,2.51572458]
[1642586302548,1.39763457,3087.9,3087.8,0.00795793]
[1642586303147,1.39763457,3087.9,3087.7,0.8098551]
[1642586303345,1.39763457,3087.9,3087.8,0.00795793]
[1642586304192,2.20761457,3087.9,3087.8,0.00795793]
[1642586304393,1.39763457,3087.9,3087.8,0.00795793]
[1642586304705,0.1295,3088.4,3087.8,0.00795793]
[1642586304897,1.61974,3088.5,3087.8,0.00795793]
[1642586305103,1.61974,3088.5,3087.3,0.14030004]
[1642586305296,1.61974,3088.5,3087.4,2.25106243]
[1642586305499,0.80987,3088.3,3087.9,0.8098728]
[1642586305698,1.3043497,3088.1,3087.9,0.8098728]
[1642586305900,0.6,3088.1,3088.0,0.00682108]
[1642586309361,3.8151,3088.7,3088.1,0.03317425]
[1642586309561,0.1295,3089.0,3088.0,3.05286512]
[1642586309760,3.6695,3089.3,3088.2,0.8096587]
[1642586309960,0.54028156,3089.2,3088.3,2.25614798]
[1642586310167,0.00113685,3089.4,3088.4,2.12664798]
[1642586310363,1.39144265,3089.3,3088.5,0.80952]
[1642586310561,0.67056971,3089.4,3088.7,0.8095]
[1642586310562,0.00113685,3089.4,3088.7,0.8095]
[1642586310762,0.00113685,3089.4,3088.6,0.13271054]
[1642586310960,0.00113685,3089.4,3088.8,0.00227369]
[1642586311159,0.00113685,3089.4,3088.7,0.00284212]
[1642586311600,1.4354892,3089.4,3088.7,0.00284212]
[1642586312000,1.7354892,3089.4,3088.7,0.00284212]
[1642586312199,1.7354892,3089.4,3088.7,1.00284212]
[1642586312402,1.7354892,3089.4,3088.9,1.6187408]
[1642586312604,1.7354892,3089.4,3088.9,0.8093808]
[1642586312806,1.7354892,3089.4,3089.0,0.00113685]
[1642586313005,0.00113685,3089.4,3089.0,5.32792199]
[1642586313509,0.00113685,3089.4,3089.2,0.80929]
[1642586313709,0.00113685,3089.4,3089.3,10.14584404]
[1642586313909,0.54110435,3090.6,3089.4,5.75]
[1642586314105,1.47372768,3090.3,3089.5,2.5568132]
[1642586314304,0.54110435,3090.2,3089.6,1.61835]
[1642586314503,0.54110435,3090.2,3089.8,0.80917]
[1642586314703,0.00397896,3090.1,3089.8,0.80917]
[1642586315141,0.00341054,3090.0,3089.8,0.80917]
[1642586315544,11.97604022,3091.1,3089.8,0.80917]
[1642586315545,0.00284212,3089.9,3089.8,0.80917]
[1642586315742,0.00284212,3089.9,3089.8,3.72571404]
[1642586315943,0.53825294,3090.5,3090.2,0.80903]
[1642586316243,0.00341054,3090.5,3090.2,0.80903]
[1642586316445,0.00341054,3090.5,3090.4,1.6181343]
[1642586317046,0.54079008,3090.5,3090.4,1.6181343]
[1642586317645,0.00341054,3090.5,3090.4,1.6181343]
[1642586318896,0.00341054,3090.5,3090.4,4.65469655]
[1642586319087,0.00341054,3090.5,3090.4,2.7474343]
[1642586319291,0.1293,3091.5,3090.6,1.6178339]
[1642586319488,0.53877082,3091.4,3091.0,0.80892]
[1642586319688,0.00341054,3091.1,3091.0,0.80892]
[1642586320087,1.10169187,3091.1,3091.0,0.80892]
[1642586320291,1.10169187,3091.1,3091.0,0.8089399]
[1642586320292,1.64046269,3091.1,3091.0,0.8089399]
[1642586320890,1.64046269,3091.1,3090.7,1.6179931]
[1642586321089,0.66807082,3091.0,3090.7,1.6179931]
[1642586321289,0.53877082,3090.9,3090.7,1.6179931]
[1642586321495,0.54104451,3090.9,3090.7,1.6179931]
[1642586321695,0.00170527,3090.8,3090.7,1.6179931]
[1642586322941,0.00170527,3090.8,3090.5,1.0]
[1642586323143,0.00170527,3090.8,3090.4,1.6181343]
[1642586323339,0.00113684,3090.7,3090.4,1.6181343]
[1642586323744,0.53877082,3090.9,3090.4,1.6181343]
[1642586323745,0.54104451,3090.9,3090.4,1.6181343]
[1642586324146,0.00170527,3090.8,3090.4,1.6181343]
[1642586324546,0.00113684,3090.7,3090.4,1.6181343]
[1642586324949,0.00170527,3090.8,3090.4,1.6181343]
[1642586325352,0.00113684,3090.7,3090.4,1.6181343]
[1642586325753,0.00170527,3090.8,3090.4,1.6181343]
[1642586326048,0.00113684,3090.7,3090.4,1.6181343]
[1642586326528,0.00113684,3090.7,3090.4,6.07362536]
[1642586326727,0.00113684,3090.7,3090.5,0.468]
[1642586326925,0.00113684,3090.7,3090.6,7.04157963]
[1642586327125,0.00113684,3090.7,3090.6,8.50957963]
[1642586327324,0.00113684,3090.7,3090.6,8.63887963]
[1642586327526,0.00113684,3090.7,3090.6,8.50957963]
[1642586327928,0.53357321,3091.4,3090.9,1.61758]
[1642586328132,0.1293,3091.9,3090.9,3.2351591]
[1642586328334,0.00397897,3091.4,3090.9,3.2351591]
[1642586328728,0.00341054,3091.3,3090.9,3.2351591]
[1642586328929,0.00341054,3091.3,3091.0,0.8087896]
[1642586329132,0.00284212,3091.2,3091.0,0.8087896]
[1642586329530,0.0022737,3091.1,3091.0,0.8087896]
[1642586330344,0.0022737,3091.1,3090.9,1.6175791]
[1642586330747,0.00170527,3091.0,3090.9,1.6175791]
[1642586330958,0.00170527,3091.0,3090.5,5.3541519]
[1642586331161,0.16721245,3090.9,3090.2,1.0]
[1642586331352,0.13043685,3090.9,3090.2,1.0]
[1642586331555,0.00113685,3090.9,3090.3,0.00227369]
[1642586331955,1.537846,3090.7,3090.4,0.8091592]
[1642586332157,0.13043685,3090.9,3090.4,0.8091592]
[1642586332356,0.13043685,3090.9,3090.5,0.00113684]
[1642586332756,0.13043685,3090.9,3090.6,0.80896]
[1642586332960,0.00113685,3090.9,3090.6,0.80896]
[1642586333562,1.26407509,3090.9,3090.6,0.80896]
[1642586334001,0.00113685,3090.9,3090.6,4.58012484]
[1642586334202,0.00113685,3090.9,3090.7,1.61772]
[1642586334401,0.00113685,3090.9,3090.7,5.0442212]
[1642586334601,0.00113685,3090.9,3090.6,0.8089692]
[1642586334803,0.00113685,3090.9,3090.5,0.00113684]
[1642586335001,1.34311361,3090.6,3090.5,0.00113684]
[1642586335202,1.34311361,3090.6,3090.3,0.00227369]
[1642586335803,2.15229361,3090.6,3090.3,1.62046689]
[1642586336204,2.15229361,3090.6,3090.4,0.00170527]
[1642586337005,0.93954685,3090.9,3090.4,0.81080017]
[1642586337208,0.00113685,3090.9,3090.4,0.81080017]
[1642586337410,0.30113685,3090.9,3090.5,0.00113684]
[1642586337670,0.00113685,3090.9,3090.5,0.00113684]
[1642586338065,1.33429926,3090.8,3090.5,0.00113684]
[1642586338567,1.63429926,3090.8,3090.5,0.00113684]
[1642586338770,1.63429926,3090.8,3090.5,0.81015684]
[1642586341170,1.63429926,3090.8,3090.5,0.00113684]
[1642586342205,0.81019685,3090.9,3090.5,0.00113684]
[1642586342409,0.00113685,3090.9,3090.6,0.01293665]
[1642586342707,0.00113685,3090.9,3090.7,0.5973]
[1642586343104,0.00113685,3090.9,3090.7,1.5973]
[1642586343505,0.00113685,3090.9,3090.7,0.5973]
[1642586343706,0.00113685,3090.9,3090.7,1.5973]
[1642586344305,0.00113685,3090.9,3090.7,4.0237622]
[1642586344506,0.00113685,3090.9,3090.7,6.65706963]
[1642586344805,0.00113685,3090.9,3090.8,1.80883]
[1642586345007,0.00113685,3090.9,3090.8,2.27683]
[1642586345646,0.00113685,3090.9,3090.8,1.468]
[1642586345850,0.13043685,3090.9,3090.5,0.00113684]
[1642586346048,0.5297559,3090.8,3090.5,0.00113684]
[1642586346246,0.1293,3090.7,3090.5,0.00113684]
[1642586346449,4.2297559,3090.6,3090.5,0.00113684]
[1642586346648,0.4293,3090.6,3090.5,0.00113684]
[1642586346946,1.68736197,3090.6,3090.5,0.00113684]
[1642586347146,1.98736197,3090.6,3090.5,0.00113684]
[1642586347746,2.36349565,3090.6,3090.5,0.00113684]
[1642586348545,2.23419565,3090.6,3090.5,0.00113684]
[1642586348751,2.66441612,3090.6,3090.5,0.00113684]
[1642586350637,2.66441612,3090.6,3090.1,0.8092346]
[1642586350839,0.67705415,3090.5,3090.2,0.00284211]
[1642586351039,0.54775415,3090.4,3090.2,0.00284211]
[1642586351240,0.54775415,3090.3,3090.2,0.00284211]
[1642586351643,1.14775415,3090.3,3090.2,0.00284211]
[1642586352240,1.14775415,3090.3,3089.9,0.00454738]
[1642586352440,1.14775415,3090.3,3089.7,0.00568423]
[1642586352441,1.35714415,3090.2,3089.7,0.00568423]
[1642586352647,0.54775415,3090.1,3089.7,0.00568423]
[1642586352852,0.54775415,3090.0,3089.7,0.00568423]
[1642586353057,0.4293,3090.1,3089.7,0.00568423]
[1642586353058,2.00246622,3089.9,3089.7,0.00568423]
[1642586353251,1.45471207,3089.9,3089.7,0.00568423]
[1642586353652,0.53496395,3089.8,3089.7,0.00568423]
[1642586353853,0.53496154,3089.8,3089.7,0.00568423]
[1642586354258,1.45471207,3089.9,3089.7,0.00568423]
[1642586354453,0.55191601,3089.8,3089.7,0.00568423]
[1642586357199,0.85191601,3089.8,3089.6,0.00625266]
[1642586357400,0.55191601,3089.7,3089.6,0.00625266]
[1642586357600,0.55191601,3089.7,3089.3,0.94765087]
[1642586357601,0.55191601,3089.7,3089.4,0.0073895]
[1642586358200,0.55191601,3089.7,3089.4,1.6260891]
[1642586358599,0.55191601,3089.7,3089.5,0.00682108]
[1642586358800,0.55191601,3089.6,3089.5,0.81614318]
[1642586359204,5.55,3089.6,3089.5,0.00682108]
[1642586359408,6.10191601,3089.6,3089.5,0.00682108]
[1642586359604,6.23121601,3089.6,3089.1,0.00909477]
[1642586359803,6.23121601,3089.6,3088.9,0.01023162]
[1642586359804,0.68121601,3089.5,3088.9,0.01023162]
[1642586360003,1.82851766,3089.2,3088.8,0.01080004]
[1642586360269,0.55191601,3089.1,3088.6,0.01193689]
[1642586360479,0.1293,3089.0,3088.7,0.01136847]
[1642586360667,0.1293,3089.0,3087.9,3.04584404]
[1642586360668,0.55191601,3088.9,3088.3,0.01364216]
[1642586360869,0.1295,3088.8,3088.3,0.01364216]
[1642586361077,0.55191601,3088.7,3088.2,0.01421058]
[1642586361276,1.48916778,3088.6,3088.2,0.01421058]
[1642586361480,1.36188601,3088.5,3088.2,0.01421058]
[1642586361683,0.03795924,3088.3,3087.4,0.1295]
[1642586361875,0.68141601,3088.2,3087.5,2.00460438]
[1642586362080,0.4295,3088.2,3087.5,2.00858335]
[1642586362277,1.35993941,3087.7,3087.5,0.00397897]
[1642586362474,1.65993941,3087.7,3087.5,0.00397897]
[1642586363475,7.2295,3087.6,3087.5,0.00397897]
[1642586363908,0.1295,3087.6,3087.5,0.00397897]
[1642586364105,0.1295,3087.7,3087.5,0.00397897]
[1642586364302,0.00113684,3088.4,3087.5,0.00397897]
[1642586364303,0.1295,3088.2,3087.5,0.00397897]
[1642586364504,0.1295,3088.3,3087.5,0.00397897]
[1642586364704,0.1295,3088.3,3087.3,0.00511581]
[1642586365105,0.1295,3088.3,3087.3,0.81505381]
[1642586365106,1.27793581,3088.1,3087.3,0.81505381]
[1642586365305,1.27793581,3088.1,3087.3,1.62489381]
[1642586365504,1.87793581,3088.1,3087.4,1.62423219]
[1642586365706,0.1295,3088.0,3087.4,0.00454739]
[1642586366108,1.27793581,3088.1,3087.4,0.00454739]
[1642586366305,1.27793581,3088.1,3087.5,0.9393537]
[1642586366506,1.27793581,3088.1,3087.5,0.8098537]
[1642586366707,1.27793581,3088.1,3087.6,0.81315054]
[1642586367010,1.27793581,3088.1,3087.7,0.00284212]
[1642586367649,1.57793581,3088.1,3087.7,0.00284212]
[1642586368055,0.00113684,3088.4,3087.8,0.8098286]
[1642586368056,0.1295,3088.3,3087.8,0.8098286]
[1642586368254,0.00113684,3088.4,3087.8,0.8098286]
[1642586368558,0.00113684,3088.4,3087.9,0.00170527]
[1642586369153,1.30806799,3088.2,3087.7,0.80972]
[1642586369353,1.30806799,3088.2,3087.8,0.1317737]
[1642586369556,1.30806799,3088.2,3087.9,0.8097139]
[1642586369759,1.30806799,3088.2,3087.9,0.81141917]
[1642586369955,1.30806799,3088.2,3088.0,0.00113685]
[1642586376457,0.00113684,3088.4,3088.1,0.5975]
[1642586376659,0.00113684,3088.4,3088.1,0.666054]
[1642586376857,0.00113684,3088.4,3088.1,1.666054]
[1642586377056,0.1295,3089.5,3088.5,0.80947]
[1642586377258,0.1295,3089.5,3088.5,1.27747]
[1642586377458,1.53376865,3089.3,3088.9,0.80937]
[1642586377858,0.00454739,3089.2,3088.9,0.80937]
[1642586378257,0.00397897,3089.1,3088.9,0.80937]
[1642586378458,0.00397897,3089.1,3088.9,0.8093669]
[1642586378660,0.00341054,3089.0,3088.8,3.2374937]
[1642586378899,0.00341054,3089.0,3088.5,0.468]
[1642586379102,0.00284212,3088.9,3088.6,1.0]
[1642586379302,0.00284212,3088.9,3088.5,1.5975]
[1642586379499,0.0022737,3088.8,3088.5,1.5975]
[1642586379703,0.0022737,3088.8,3088.5,2.216482]
[1642586379903,0.00170527,3088.7,3088.5,3.216482]
[1642586380306,0.00113685,3088.6,3088.5,4.025962]
[1642586380504,0.00113685,3088.6,3088.5,9.87163874]
[1642586380703,0.00113685,3088.6,3088.5,6.17273874]
[1642586381904,0.00113685,3088.6,3088.5,3.216482]
[1642586382106,0.00113685,3088.6,3088.5,6.13360756]
[1642586382774,0.00113685,3088.6,3088.5,3.216482]
[1642586385769,0.00113685,3088.6,3088.5,3.086982]
[1642586388906,0.00113685,3088.6,3088.4,0.1295]
[1642586389110,0.00113685,3088.6,3088.2,0.00113685]
[1642586389308,0.05851477,3088.5,3088.2,0.00113685]
[1642586389507,0.05851477,3088.5,3088.0,0.00227369]
[1642586389705,0.00113685,3088.6,3088.0,0.00227369]
[1642586389905,0.02738707,3088.5,3088.0,0.00227369]
[1642586390150,1.43871337,3088.1,3088.0,0.00227369]
[1642586390949,1.43871337,3088.1,3087.8,0.00341054]
[1642586391953,1.43871337,3088.1,3087.8,1.00341054]
[1642586392454,1.43871337,3088.1,3087.9,0.00284211]
[1642586395804,1.43871337,3088.1,3087.7,7.45]
[1642586395805,1.43871337,3088.1,3087.8,0.00341054]
[1642586396604,1.43871337,3088.1,3087.5,1.74050522]
[1642586396809,0.1295,3088.0,3087.6,0.00454738]
[1642586397204,0.1295,3088.0,3087.3,0.00625265]
[1642586397402,0.1295,3088.0,3087.4,1.72197578]
[1642586397649,0.1295,3088.0,3087.2,0.00682108]
[1642586397847,0.1295,3088.0,3087.5,0.00511581]
[1642586398048,0.1295,3088.0,3087.2,1.00682108]
[1642586398248,0.1295,3088.0,3087.4,0.00568423]
[1642586398452,0.93949,3088.0,3087.3,0.00625265]
[1642586398647,0.93949,3088.0,3087.4,1.62165796]
[1642586398848,0.1295,3088.0,3087.3,0.00625265]
[1642586399049,0.1295,3088.0,3087.2,1.0]
[1642586399050,0.1295,3088.0,3087.5,0.00511581]
[1642586399248,0.1295,3088.5,3087.3,0.00625265]
[1642586399448,1.05339641,3088.4,3087.5,0.00511581]
[1642586399648,0.1295,3088.3,3087.3,0.00625265]
[1642586399849,0.1295,3088.3,3087.5,0.00511581]
[1642586399850,1.05339641,3088.2,3087.5,0.00511581]
[1642586400049,1.05339641,3088.2,3087.6,0.8098597]
[1642586400050,0.1295,3088.1,3087.6,0.8098597]
[1642586400449,1.48034124,3088.0,3087.6,0.8098597]
[1642586400751,1.48034124,3088.0,3087.5,0.00511581]
[1642586400752,0.1295,3087.9,3087.5,0.00511581]
[1642586401149,0.1295,3087.9,3087.6,1.62231031]
[1642586401405,0.1295,3087.9,3087.5,0.00511581]
[1642586401604,0.1295,3087.9,3087.6,1.62148231]
[1642586401804,0.1295,3087.9,3087.5,1.62473501]
[1642586402008,1.1820146,3087.8,3087.5,0.00511581]
[1642586402204,0.1295,3087.7,3087.5,0.00511581]
[1642586402407,0.1295,3087.9,3087.5,0.00511581]
[1642586402604,0.1295,3088.4,3087.5,0.00511581]
[1642586402805,1.17886949,3088.3,3087.5,0.00511581]
[1642586403004,0.1295,3088.2,3087.7,0.8098296]
[1642586403204,1.17886949,3088.1,3087.7,0.8098296]
[1642586403610,0.00338386,3087.9,3087.7,0.8098296]
[1642586403807,1.17883141,3088.2,3087.7,0.8098296]
[1642586404006,1.43647762,3088.4,3087.8,1.49597285]
[1642586404205,1.43647762,3088.4,3087.9,1.49597627]
[1642586404206,1.17907357,3088.3,3087.9,1.49597627]
[1642586404406,1.17907357,3088.3,3087.8,2.4290448]
[1642586404808,1.17907357,3088.3,3087.6,0.1295]
[1642586405008,1.17907357,3088.3,3087.5,0.00511581]
[1642586405009,1.51371528,3087.8,3087.5,0.00511581]
[1642586406255,0.1295,3088.3,3087.5,0.81498171]
[1642586406455,1.19236757,3088.2,3087.5,0.81498171]
[1642586406755,1.19236757,3088.2,3087.6,1.48336807]
[1642586406956,0.1295,3088.5,3087.6,1.48336807]
[1642586406957,1.19236757,3088.1,3087.6,1.48336807]
[1642586407157,1.38839774,3088.4,3087.5,2.85526266]
[1642586407357,0.1295,3088.3,3087.7,0.809798]
[1642586407555,1.245,3088.8,3087.8,5.78254782]
[1642586407759,1.245,3088.8,3087.8,7.73306596]
[1642586407956,1.19386331,3088.7,3087.9,1.48536025]
[1642586408156,1.32336331,3088.7,3088.0,2.9841787]
[1642586408357,1.19329489,3088.6,3088.1,1.48083246]
[1642586408556,0.00113685,3088.6,3088.2,2.4288539]
[1642586408760,1.19230096,3088.7,3088.2,5.26265982]
[1642586409005,0.13347897,3089.1,3088.3,1.47908662]
[1642586409209,0.00113685,3088.6,3088.4,3.60893559]
[1642586409408,0.1295,3089.8,3088.8,0.59500158]
[1642586409606,2.38848851,3090.3,3088.8,0.59500158]
[1642586409607,1.19226649,3089.7,3089.1,0.80931]
[1642586409806,1.22203614,3089.4,3089.2,3.76403897]
[1642586410006,1.19226649,3089.3,3089.2,3.69971709]
[1642586410208,1.19226649,3089.3,3089.2,3.83248345]
[1642586410409,0.00738951,3089.9,3089.3,0.93849]
[1642586410610,1.31518981,3089.8,3089.5,0.8092]
[1642586410811,1.32201089,3089.8,3089.4,1.61839]
[1642586411008,1.32144247,3089.7,3089.4,1.61839]
[1642586411210,2.4801453,3089.6,3089.4,1.61839]
[1642586411414,1.31518981,3089.5,3089.2,1.6186917]
[1642586411609,1.32030562,3089.5,3089.2,1.6186917]
[1642586411810,0.00454739,3089.4,3089.2,2.4280617]
[1642586412010,0.00454739,3089.4,3089.3,3.66349276]
[1642586412214,1.16495549,3089.6,3089.3,0.8093386]
[1642586412409,1.31578043,3089.5,3089.3,0.8093386]
[1642586412651,0.00338386,3089.4,3089.3,0.8093386]
[1642586412855,1.31916429,3089.4,3089.2,2.4280617]
[1642586413055,0.00338386,3089.4,3089.3,7.6125518]
[1642586413254,0.1293,3090.2,3089.3,3.7125518]
[1642586413456,1.74357776,3090.3,3089.3,3.69098576]
[1642586413755,1.32727233,3090.1,3089.3,3.69098576]
[1642586413958,1.44804598,3090.0,3089.5,1.6184116]
[1642586414157,1.14257189,3089.8,3089.6,2.4275925]
[1642586414356,1.31874598,3089.7,3089.6,2.4275925]
[1642586414556,1.32499864,3089.7,3089.6,2.4275925]
[1642586414765,1.32499864,3089.7,3089.6,3.02259408]
[1642586415183,1.32499864,3089.7,3089.6,2.21340408]
[1642586415763,1.3283825,3089.7,3089.6,2.21340408]
[1642586416164,0.00963652,3089.7,3089.6,2.21340408]
[1642586416614,1.33244626,3089.7,3089.6,2.21340408]
[1642586416809,5.81174626,3089.7,3089.6,0.59500158]
[1642586417807,1.46174626,3089.7,3089.6,0.59500158]
[1642586419011,1.76174626,3089.7,3089.6,0.59500158]
[1642586419216,1.46174626,3089.7,3089.6,0.59500158]
[1642586419416,1.33244626,3089.7,3089.6,1.19000316]
[1642586419614,1.46174626,3089.7,3089.6,1.19000316]
[1642586419812,4.66174626,3089.7,3089.6,1.19000316]
[1642586421061,4.66174626,3089.7,3088.9,0.28923195]
[1642586421062,7.90959,3089.6,3088.9,0.28923195]
[1642586421266,1.48578441,3089.5,3088.9,0.28923195]
[1642586421460,1.3261936,3089.4,3088.9,0.28923195]
[1642586421662,0.02694438,3089.2,3088.9,0.28923195]
[1642586421867,1.45210974,3089.1,3088.9,0.28923195]
[1642586422063,6.29724919,3089.0,3088.9,0.28923195]